lending/lending_fUSD_20240411
["ID","MTS","AMOUNT","RATE_DAILY","PERIOD"]
[322120719,1712810350312,407.81986227,0.00018033,2]
[322120720,1712810351753,2536.83248559,0.00013525,2]
[322120721,1712810352894,1469.20927421,0.00018033,2]
[322120722,1712810353057,20137.1454484,0.00018033,2]
[322120723,1712810353776,179.35267513,0.00018033,2]
[322120724,1712810355468,748.65941806,0.00018807,2]
[322120725,1712810355531,323.37069927,0.00018033,2]
[322120726,1712810359366,864.94891569,0.00018033,2]
[322120727,1712810360781,412.06464563,0.00018033,2]
[322120728,1712810361575,457.24974944,0.00018033,2]
[322120729,1712810361992,155.0,0.00018807,2]
[322120730,1712810362067,365.17506551,0.00018033,2]
[322120731,1712810362466,941.51185046,0.00018033,2]
[322120732,1712810362776,1034.65639759,0.00018033,2]
[322120733,1712810363640,156.28178987,0.00018807,2]
[322120734,1712810364230,1372.10854233,0.00018033,2]
[322120735,1712810365665,287.94852991,0.00018033,2]
[322120736,1712810367412,320.54761309,0.00018033,2]
[322120737,1712810367441,952.22659535,0.00017131,2]
[322120738,1712810367805,155.0,0.00018807,2]
[322120739,1712810368209,2536.83248559,0.00013525,2]
[322120740,1712810368898,1469.20927421,0.00018033,2]
[322120741,1712810369042,20137.1454484,0.00018033,2]
[322120742,1712810371681,179.35267513,0.00018033,2]
[322120743,1712810375131,804.96095041,0.00018807,2]
[322120744,1712810376553,280.18249221,0.00018033,2]
[322120745,1712810379976,245.93925361,0.00018807,2]
[322120746,1712810381194,323.37069927,0.00018033,2]
[322120747,1712810381368,864.94891569,0.00018033,2]
[322120748,1712810382179,1223.79362782,0.00018033,2]
[322120749,1712810382739,1034.65639759,0.00018033,2]
[322120750,1712810383756,194.32036952,0.00018807,2]
[322120751,1712810384282,409.90052654,0.00018033,2]
[322120752,1712810384510,42522.8257314,0.00018033,2]
[322120753,1712810385438,952.22659535,0.00017867,2]
[322120754,1712810387304,287.94852991,0.00018033,2]
[322120755,1712810388287,343.51277695,0.00018033,2]
[322120756,1712810389944,19642.77527935,0.00018807,2]
[322120757,1712810390914,1469.20927421,0.00018807,2]
[322120758,1712810391054,15832.59547492,0.00018807,2]
[322120759,1712810391088,4304.54997348,0.00018807,2]
[322120760,1712810391693,179.35267513,0.00018807,2]
[322120761,1712810391756,573.18124399,0.00014105,2]
[322120762,1712810397895,864.94891569,0.00018807,2]
[322120763,1712810400752,1034.65639759,0.00018807,2]
[322120764,1712810401207,351.17715026,0.00018807,2]
[322120765,1712810402655,42522.8257314,0.00018807,2]
[322120766,1712810403978,343.51277695,0.00018807,2]
[322120767,1712810405316,287.94852991,0.00018807,2]
[322120768,1712810405584,952.22659535,0.00017867,2]
[322120769,1712810407053,20137.1454484,0.00018807,2]
[322120770,1712810410979,1469.20927421,0.00018807,2]
[322120771,1712810413697,242.06824265,0.00018807,2]
[322120772,1712810417406,906.43144118,0.00018807,2]
[322120773,1712810421975,343.51277695,0.00018807,2]
[322120774,1712810422752,1034.65639759,0.00018807,2]
[322120775,1712810423305,287.94852991,0.00018807,2]
[322120776,1712810423953,17724.99526429,0.00018807,2]
[322120777,1712810424501,42522.8257314,0.00018807,2]
[322120778,1712810425054,20137.1454484,0.00018807,2]
[322120779,1712810426914,1469.20927421,0.00018807,2]
[322120780,1712810427445,735.3036562,0.00017867,2]
[322120781,1712810443062,20137.1454484,0.00018807,2]
[322120782,1712810443986,379.04063378,0.00018807,2]
[322120783,1712810444754,1034.65639759,0.00018807,2]
[322120784,1712810445358,287.94852991,0.00018807,2]
[322120785,1712810446558,1319.02880424,0.00018807,2]
[322120786,1712810446966,909.28355421,0.00017867,2]
[322120787,1712810459059,7022.61720554,0.00017867,2]
[322120788,1712810462759,1034.65639759,0.00017867,2]
[322120789,1712810467439,268.92984987,0.00017867,2]
[322120790,1712810470373,173.45,0.00015583,2]
[322120791,1712810480781,446.61790797,0.00017867,2]
[322120792,1712810585296,617.711866,0.0001898,2]
[322120793,1712810602252,570.27148273,0.00020897,7]
[322120794,1712810609652,171.61,0.00016712,2]
[322120795,1712810620242,570.27148273,0.00020897,7]
[322120796,1712810635067,189.24798581,0.00018974,2]
[322120797,1712810636221,568.27379824,0.00020897,7]
[322120798,1712810636549,1486.96083434,0.00018973,2]
[322120799,1712810640818,1486.96083434,0.00018974,2]
[322120800,1712810645031,1486.96083434,0.00018974,2]
[322120801,1712810645969,192.88,0.00015553,2]
[322120802,1712810646448,192.88,0.00017498,2]
[322120803,1712810666303,6508.869244,0.00018975,2]
[322120804,1712810690587,1360.34,0.0001748,2]
[322120805,1712810721735,159.164136,0.00018356,2]
[322120806,1712810721912,178.50694492,0.00018969,2]
[322120807,1712810729985,186.81358156,0.00018968,2]
[322120808,1712810962805,5120.1743,0.00018961,2]
[322120810,1712810989065,-1291.60146399,0.00019049,2]
[322120811,1712810989091,-537.00036247,0.0001905,2]
[322120812,1712810989114,-155.0,0.0001905,2]
[322120813,1712810989141,-2736.32825548,0.00019051,2]
[322120814,1712811002505,-1970.24055774,0.0001905,2]
[322120815,1712811002528,-1983.60182646,0.00019051,2]
[322120816,1712811002556,-4407.1176158,0.00019056,2]
[322120817,1712811014776,-10787.108852,0.00019056,2]
[322120845,1712811032358,-150.0,0.00019063,2]
[322120848,1712811032368,-1600.0,0.00019064,2]
[322120856,1712811032428,-1112.07629639,0.00019064,2]
[322120875,1712811032629,-1090.13882869,0.00019064,2]
[322120890,1712811032767,-15617.88381524,0.00019064,2]
[322120892,1712811032777,-8360.96,0.00019094,2]
[322120894,1712811032786,-150.0,0.00019174,2]
[322120896,1712811032795,-150.99,0.00019178,2]
[322120898,1712811032804,-1000.0,0.00019187,2]
[322120900,1712811032814,-187.15,0.0001919,2]
[322120902,1712811032824,-500.0,0.00019214,2]
[322120904,1712811032834,-156.05,0.00019214,2]
[322120906,1712811032844,-500.0,0.00019226,2]
[322120908,1712811032854,-150.99,0.00019226,2]
[322120910,1712811032863,-200.0,0.00019233,2]
[322120911,1712811032872,-695.71863654,0.00019256,2]
[322120914,1712811032882,-13673.75,0.00019257,2]
[322120915,1712811032891,-1477.0,0.00019266,2]
[322120918,1712811032902,-2660.53,0.00019416,2]
[322120920,1712811032912,-192.88,0.00019442,2]
[322120922,1712811032922,-233.19,0.00019442,2]
[322120924,1712811032931,-250.0,0.00019489,2]
[322120926,1712811032940,-482.51,0.00019548,2]
[322120927,1712811032950,-16591.3574,0.00019573,2]
[322120929,1712811032959,-482.51,0.00019602,2]
[322120931,1712811032968,-163.13368277,0.00019636,2]
[322120933,1712811032977,-176.61,0.00019642,2]
[322120935,1712811032986,-165.96,0.00019653,2]
[322120937,1712811032995,-482.51,0.00019656,2]
[322120939,1712811033005,-906.94,0.000197,2]
[322120941,1712811033015,-482.51,0.00019709,2]
[322120943,1712811033024,-1360.34,0.00019744,2]
[322120945,1712811033034,-166.57,0.00019747,2]
[322120947,1712811033043,-482.51,0.00019763,2]
[322120949,1712811033052,-482.51,0.00019817,2]
[322120951,1712811033062,-319.98701231,0.00019852,2]
[322120953,1712811033071,-1289.31325746,0.00019852,2]
[322120955,1712811033080,-482.51,0.0001987,2]
[322120958,1712811033140,-482.51,0.00019924,2]
[322120960,1712811033151,-906.94,0.00019941,2]
[322120962,1712811033161,-482.51,0.00019977,2]
[322120964,1712811033171,-858.41607559,0.0002,2]
[322120966,1712811033181,-482.51,0.00020031,2]
[322120967,1712811033191,-931.03,0.00020041,2]
[322120968,1712811033202,-906.94,0.00020041,2]
[322120969,1712811033212,-482.51,0.00020085,2]
[322120970,1712811033221,-167.18,0.00020116,2]
[322120971,1712811033231,-482.51,0.00020138,2]
[322120972,1712811033241,-482.51,0.00020192,2]
[322120973,1712811033250,-154.91576623,0.00020197,2]
[322120974,1712811033261,-482.51,0.00020245,2]
[322120975,1712811033270,-482.51,0.00020299,2]
[322120976,1712811033280,-835.49,0.00020341,2]
[322120977,1712811033289,-154.91576623,0.00020348,2]
[322120978,1712811033299,-482.51,0.00020353,2]
[322120979,1712811033309,-482.51,0.00020406,2]
[322120980,1712811033321,-482.51,0.0002046,2]
[322120981,1712811033331,-154.91576623,0.00020499,2]
[322120982,1712811033342,-903.28,0.000205,2]
[322120983,1712811033351,-482.51,0.00020514,2]
[322120984,1712811033360,-267.81,0.00020536,2]
[322120985,1712811033370,-482.51,0.00020567,2]
[322120986,1712811033379,-906.94,0.000206,2]
[322120987,1712811033388,-1024.0,0.000206,2]
[322120988,1712811033398,-1171.01048501,0.00020631,2]
[322120989,1712811033408,-154.91576623,0.00020649,2]
[322120990,1712811033417,-2003.76512837,0.00020672,2]
[322120991,1712811033427,-1137.3417,0.0002069,2]
[322120992,1712811033437,-343.2062,0.00020699,2]
[322120993,1712811033447,-382.3872,0.00020699,2]
[322120994,1712811033457,-5749.22644004,0.00020699,2]
[322120995,1712811033467,-5895.42369868,0.00020699,2]
[322120996,1712811033476,-1009.0,0.000207,2]
[322120997,1712811033485,-24365.1361,0.00020798,2]
[322120998,1712811033495,-746.9717,0.00020799,2]
[322120999,1712811033505,-1000.0,0.00020799,2]
[322121000,1712811033514,-27463.0322,0.00020799,2]
[322121001,1712811033523,-418.8555,0.00020799,2]
[322121002,1712811033533,-3521.2063,0.00020799,2]
[322121003,1712811033543,-317.01932314,0.00020799,2]
[322121004,1712811033552,-154.91576623,0.000208,2]
[322121005,1712811033562,-163.13368277,0.000208,2]
[322121006,1712811033572,-1013.0,0.000208,2]
[322121007,1712811033581,-150.89897391,0.000208,2]
[322121008,1712811033590,-10074.92033438,0.000208,2]
[322121009,1712811033599,-157.041113,0.00020896,4]
[322121010,1712811033608,-157.041113,0.00020896,4]
[322121011,1712811033617,-157.041113,0.00020896,4]
[322121012,1712811033627,-157.041113,0.00020896,4]
[322121013,1712811033636,-157.041113,0.00020896,4]
[322121014,1712811033645,-157.041113,0.00020896,4]
[322121015,1712811033657,-207.27012817,0.00020897,2]
[322121016,1712811033668,-170.56334602,0.00020897,2]
[322121017,1712811033678,-157.041113,0.00020897,4]
[322121018,1712811033688,-157.041113,0.00020897,4]
[322121019,1712811033702,-157.041113,0.00020897,4]
[322121020,1712811033713,-157.041113,0.00020897,4]
[322121021,1712811033723,-157.041113,0.00020897,4]
[322121022,1712811033734,-538.18635898,0.00020897,2]
[322121023,1712811033745,-155.0,0.00020897,2]
[322121024,1712811033754,-196.7061197,0.00020897,2]
[322121025,1712811033765,-8912.58630443,0.00020897,2]
[322121026,1712811033775,-342.56452733,0.00020897,2]
[322121027,1712811033784,-2000.0,0.00020897,2]
[322121028,1712811033794,-200.0,0.00020897,2]
[322121029,1712811033803,-628.01228252,0.00020897,2]
[322121030,1712811033813,-157.24449267,0.00020897,2]
[322121031,1712811033822,-200.0,0.00020897,2]
[322121032,1712811033832,-566.19164956,0.00020897,2]
[322121033,1712811033841,-27041.15384029,0.00020898,2]
[322121034,1712811033855,-6660.44507991,0.00020898,2]
[322121035,1712811033865,-298110.63178496,0.00020899,2]
[322121036,1712811033874,-2000.0,0.00020899,2]
[322121037,1712811033883,-200.0,0.00020899,2]
[322121038,1712811033894,-2000.0,0.00020899,2]
[322121039,1712811033904,-192.02337343,0.00020899,2]
[322121040,1712811033914,-2210.0,0.00020899,2]
[322121041,1712811033924,-190.80715559,0.00020899,2]
[322121042,1712811033935,-29021.36219294,0.000209,2]
[322121081,1712811038986,-295.42247973,0.000209,2]
[322121082,1712811039084,-35232.045,0.000209,2]
[322121083,1712811039100,-1029.27,0.000209,2]
[322121195,1712811040386,-1538.9819,0.00020699,2]
[322121196,1712811040396,-775.912018,0.000209,2]
[322121197,1712811040494,-13375.0022279,0.000209,2]
[322121198,1712811040506,-4993.79325788,0.000209,2]
[322121199,1712811040549,-2035.78436345,0.000209,2]
[322121207,1712811043745,-575.13749975,0.000209,2]
[322121208,1712811043756,-419.24290805,0.000209,2]
[322121209,1712811043779,-6435.31943896,0.000209,2]
[322121210,1712811043791,-20041.7619121,0.000209,2]
[322121211,1712811043803,-6183.29788972,0.000209,2]
[322121212,1712811043814,-6057.92546829,0.000209,2]
[322121213,1712811043827,-4106.42536395,0.000209,2]
[322121214,1712811043839,-2827.327112,0.000209,2]
[322121215,1712811043851,-11065.40823711,0.000209,2]
[322121216,1712811043911,-628.18,0.000209,2]
[322121217,1712811043953,-25613.925346,0.000209,2]
[322121218,1712811043965,-2991.23279998,0.000209,2]
[322121219,1712811043977,-5265.35604426,0.000209,2]
[322121220,1712811043989,-1413.41338277,0.000209,2]
[322121221,1712811044001,-3050.49515292,0.000209,2]
[322121222,1712811044014,-3409.25847144,0.000209,2]
[322121223,1712811044026,-5327.60826562,0.000209,2]
[322121224,1712811044037,-11580.65018315,0.000209,2]
[322121225,1712811044049,-6275.58420791,0.000209,2]
[322121226,1712811044063,-2016.42169512,0.000209,2]
[322121227,1712811044077,-10750.66685047,0.000209,2]
[322121492,1712811046968,-8592.59259973,0.000209,2]
[322121496,1712811046997,-831.83615779,0.000209,2]
[322121499,1712811047008,-1531.66,0.000209,2]
[322121502,1712811047026,-1961.05,0.000209,2]
[322121504,1712811047039,-5546.8427401,0.000209,2]
[322121508,1712811047063,-2395.82962314,0.000209,2]
[322121514,1712811047113,-1146.67791308,0.000209,2]
[322121517,1712811047133,-897.0126949,0.000209,2]
[322121519,1712811047146,-627.44,0.000209,2]
[322121637,1712811061716,150.0,0.00018809,2]
[322121638,1712811061737,99.29640351,0.00018809,2]
[322121639,1712811072305,50.70359649,0.000154,2]
[322121640,1712811072326,150.0,0.000154,2]
[322121641,1712811072354,6152.76221128,0.000154,2]
[322121642,1712811080070,1358.4938,0.00018961,2]
[322121643,1712811081616,536.09981349,9e-05,2]
[322121644,1712811086999,437.60920729,0.00018,2]
[322121645,1712811099205,3697.08093297,0.00011,2]
[322121646,1712811117251,9930.77727597,6.94e-05,2]
[322121647,1712811124602,1020.833951,0.000155,2]
[322121648,1712811152896,192.88,0.00016012,2]
[322121649,1712811167626,14822.4523,0.00018963,2]
[322121650,1712811185541,94435.97341605,0.000189,2]
[322121651,1712811232892,1265.19,0.00017996,2]
[322121652,1712811271043,32788.20097809,0.00015,2]
[322121653,1712811275303,208.40218646,0.0001,2]
[322121654,1712811611612,192.88,0.00015503,2]
[322121655,1712811738504,223.66882539,0.00017351,2]
[322121656,1712811738533,978.26117461,0.00017351,2]
[322121832,1712812231706,-4183.83177391,0.00019154,2]
[322121833,1712812231887,-1352.25708725,0.00019154,2]
[322121834,1712812231927,-1080.49291275,0.00019155,2]
[322121835,1712812231985,-1275.09916049,0.00019155,2]
[322121836,1712812231996,-139.96455869,0.00019155,2]
[322121837,1712812232008,-75.66389601,0.00019155,2]
[322121838,1712812232020,-155.0,0.00019156,2]
[322121839,1712812232030,-296.10899353,0.00019156,2]
[322121841,1712812232040,-1.35748048,0.00019156,2]
[322121844,1712812232057,-358.79382219,0.00019156,2]
[322121860,1712812238027,-364.35,0.00019139,2]
[322121862,1712812238037,-1460.50164642,0.00019156,2]
[322121864,1712812238050,-1949.13956415,0.00019156,2]
[322121867,1712812238060,-736.85140415,0.00019157,2]
[322121871,1712812238073,-155.0,0.00019157,2]
[322121873,1712812238084,-150.0,0.00019161,2]
[322121875,1712812238093,-14858.54541544,0.00019162,2]
[322121933,1712812238639,-1036.24451051,0.00019162,2]
[322121935,1712812238652,-638.25057478,0.00019162,2]
[322121943,1712812238711,-2025.65425398,0.00019162,2]
[322121945,1712812238723,-5341.30524529,0.00019162,2]
[322121947,1712812238732,-908.04,0.00019172,2]
[322121949,1712812238742,-277.77,0.00019183,2]
[322121951,1712812238752,-2366.13,0.00019186,2]
[322121953,1712812238761,-800.0,0.00019233,2]
[322121956,1712812238771,-305.25,0.00019241,2]
[322121958,1712812238781,-172.44,0.00019248,2]
[322121960,1712812238796,-6221.27,0.00019248,2]
[322121962,1712812238805,-150.0,0.00019255,2]
[322121964,1712812238815,-4116.38,0.00019272,2]
[322121966,1712812238824,-500.0,0.0001929,2]
[322121968,1712812238834,-2886.85,0.0001929,2]
[322121970,1712812238844,-1310.16727507,0.00019332,2]
[322121972,1712812238856,-1711.43272493,0.00019332,2]
[322121974,1712812238866,-165.96,0.00019368,2]
[322121976,1712812238876,-122.67694507,0.00019374,2]
[322121979,1712812238888,-12751.16305493,0.00019374,2]
[322121981,1712812238901,-1412.22,0.00019408,2]
[322121983,1712812238911,-200.0,0.00019428,2]
[322121985,1712812238920,-155.04,0.00019482,2]
[322121987,1712812238930,-155.04,0.00019554,2]
[322121989,1712812238939,-1201.93,0.00019615,2]
[322121991,1712812238949,-887.112,0.00019615,2]
[322121993,1712812238958,-155.04,0.00019627,2]
[322121995,1712812238968,-163.82,0.00019662,2]
[322121997,1712812238977,-155.04,0.00019699,2]
[322121999,1712812238986,-155.04,0.00019772,2]
[322122001,1712812238998,-155.04,0.00019844,2]
[322122003,1712812239007,-155.04,0.00019917,2]
[322122005,1712812239016,-155.04,0.00019989,2]
[322122008,1712812239026,-155.04,0.00020062,2]
[322122010,1712812239036,-155.04,0.00020134,2]
[322122012,1712812239045,-155.04,0.00020207,2]
[322122014,1712812239055,-155.04,0.00020279,2]
[322122016,1712812239064,-155.04,0.00020352,2]
[322122018,1712812239074,-155.04,0.00020424,2]
[322122020,1712812239083,-155.04,0.00020497,2]
[322122022,1712812239093,-1068.07382479,0.00020597,2]
[322122024,1712812239102,-1000.0,0.00020733,2]
[322122026,1712812239111,-500.0,0.00020733,2]
[322122028,1712812239121,-9236.32342272,0.0002079,2]
[322122030,1712812239131,-674.9871,0.00020797,2]
[322122032,1712812239140,-21357.1111,0.000208,2]
[322122034,1712812239150,-20244.1288,0.000208,2]
[322122036,1712812239159,-500.0,0.000208,2]
[322122039,1712812239172,-6917.38952127,0.000208,2]
[322122041,1712812239182,-317.053414,0.000208,2]
[322122043,1712812239192,-150.92888965,0.00020886,2]
[322122045,1712812239201,-198.02966088,0.0002089,2]
[322122047,1712812239211,-157.041114,0.00020896,4]
[322122049,1712812239221,-157.041114,0.00020896,4]
[322122050,1712812239230,-157.041114,0.00020897,4]
[322122051,1712812239241,-157.041114,0.00020897,4]
[322122052,1712812239250,-157.041114,0.00020897,4]
[322122053,1712812239260,-157.041114,0.00020897,4]
[322122054,1712812239269,-157.041114,0.00020897,4]
[322122055,1712812239279,-157.041114,0.00020897,4]
[322122056,1712812239289,-157.041114,0.00020898,4]
[322122057,1712812239299,-157.041114,0.00020898,4]
[322122058,1712812239309,-157.041114,0.00020898,4]
[322122059,1712812239318,-157.041114,0.00020898,4]
[322122060,1712812239328,-157.041114,0.00020898,4]
[322122061,1712812239337,-157.041114,0.00020898,4]
[322122062,1712812239347,-157.041114,0.00020898,4]
[322122063,1712812239356,-500.0,0.00020899,2]
[322122064,1712812239366,-500.0,0.00020899,2]
[322122065,1712812239375,-410.36577034,0.00020899,2]
[322122066,1712812239385,-778226.69766598,0.000209,2]
[322122067,1712812239394,-1044.90649376,0.000209,2]
[322122068,1712812239404,-155.39610475,0.000209,2]
[322122069,1712812239416,-1000.0,0.000209,2]
[322122070,1712812239425,-326.73064045,0.000209,2]
[322122071,1712812239435,-2000.0,0.000209,2]
[322122072,1712812239444,-200.0,0.000209,2]
[322122073,1712812239455,-2000.0,0.000209,2]
[322122074,1712812239464,-339.74931506,0.000209,2]
[322122075,1712812239474,-2000.0,0.000209,2]
[322122077,1712812239483,-10000.0,0.000209,2]
[322122079,1712812239493,-947.78475,0.000209,2]
[322122080,1712812239502,-2000.98204464,0.000209,2]
[322122081,1712812239512,-200.0,0.000209,2]
[322122082,1712812239522,-11629.20525887,0.000209,3]
[322122083,1712812239532,-2852.57743915,0.000209,2]
[322122085,1712812239541,-12137.6019566,0.00020917,2]
[322122087,1712812239552,-4147.65168804,0.00020977,4]
[322122089,1712812239741,-3012.42908555,0.00020977,2]
[322122090,1712812239755,-12522.1907689,0.00020986,2]
[322122091,1712812239767,-12906.7795812,0.00020986,2]
[322122092,1712812239778,-13291.3683934,0.00020986,2]
[322122093,1712812239795,-13675.9572057,0.00020986,2]
[322122094,1712812239806,-1395.0,0.0002099,2]
[322122095,1712812239816,-1395.0,0.0002099,2]
[322122096,1712812239826,-1395.0,0.0002099,2]
[322122097,1712812239840,-1395.0,0.0002099,2]
[322122098,1712812239851,-1395.0,0.0002099,2]
[322122099,1712812239863,-1395.0,0.0002099,2]
[322122100,1712812239876,-1395.0,0.0002099,2]
[322122101,1712812239887,-1395.0,0.0002099,2]
[322122102,1712812239898,-1395.0,0.0002099,2]
[322122103,1712812239908,-1395.0,0.0002099,2]
[322122104,1712812239918,-407.37933712,0.00020996,2]
[322122105,1712812239928,-623.53938011,0.00020996,2]
[322122106,1712812239938,-642.17855677,0.00020996,2]
[322122107,1712812239948,-928.37505763,0.00020996,2]
[322122108,1712812239958,-2511.36860627,0.00020996,2]
[322122109,1712812239967,-10227.76107379,0.00020996,2]
[322122110,1712812239977,-662.77984886,0.00020996,2]
[322122111,1712812239987,-1238.7212054,0.00020996,2]
[322122112,1712812239997,-309.06957606,0.00020997,2]
[322122113,1712812240006,-1782.58175244,0.00020997,2]
[322122114,1712812240015,-1134.79791883,0.00020997,2]
[322122115,1712812240025,-237.99764573,0.00020998,2]
[322122116,1712812240038,-270.05509214,0.00020998,2]
[322122117,1712812240048,-163.64221507,0.00020998,2]
[322122118,1712812240057,-257.9924181,0.00020998,2]
[322122119,1712812240066,-224.59406512,0.00020998,2]
[322122120,1712812240076,-253.62432224,0.00020998,2]
[322122121,1712812240085,-1955.23183089,0.00020998,2]
[322122122,1712812240095,-203.53725637,0.00020998,2]
[322122123,1712812240104,-155.35132088,0.00020998,2]
[322122124,1712812240113,-1650.0026369,0.00020998,2]
[322122125,1712812240122,-156.40568673,0.00020998,2]
[322122126,1712812240132,-155.38545165,0.00020998,2]
[322122127,1712812240141,-167.51746447,0.00020998,2]
[322122128,1712812240150,-177.03490744,0.00020998,2]
[322122129,1712812240159,-195.24769107,0.00020998,2]
[322122130,1712812240169,-4312.61714156,0.00020998,2]
[322122131,1712812240178,-266.41638357,0.00020998,2]
[322122132,1712812240187,-278.21787647,0.00020998,2]
[322122133,1712812240197,-3382.95455978,0.00020998,2]
[322122134,1712812240206,-155.85735465,0.00020998,2]
[322122135,1712812240215,-194.43899637,0.00020998,2]
[322122136,1712812240223,-155.58368933,0.00020998,2]
[322122137,1712812240232,-409.23108518,0.00020998,2]
[322122138,1712812240242,-192.30060608,0.00020998,2]
[322122139,1712812240251,-448.64215521,0.00020998,2]
[322122140,1712812240260,-206.27456611,0.00020998,2]
[322122141,1712812240269,-201.43475539,0.00020998,2]
[322122142,1712812240278,-2307.7070106,0.00020998,2]
[322122143,1712812240294,-408.4031128,0.00020998,2]
[322122144,1712812240303,-368.47878206,0.00020998,2]
[322122145,1712812240313,-2832.90515602,0.00020998,2]
[322122146,1712812240322,-160.3061464,0.00020998,2]
[322122147,1712812240331,-67970.84326103,0.00020998,2]
[322122148,1712812240341,-155.77563548,0.00020998,2]
[322122149,1712812240350,-206.4109594,0.00020998,2]
[322122150,1712812240360,-201.84235747,0.00020998,2]
[322122151,1712812240369,-273.08708116,0.00020998,2]
[322122152,1712812240379,-301.81207575,0.00020998,2]
[322122153,1712812240389,-3475.14497539,0.00020999,2]
[322122154,1712812240399,-155.95222521,0.00020999,2]
[322122155,1712812240408,-1058.17735735,0.00020999,2]
[322122156,1712812240418,-155.61322452,0.00020999,2]
[322122157,1712812240427,-376.29834861,0.00020999,2]
[322122158,1712812240436,-624.81043763,0.00020999,2]
[322122159,1712812240445,-203.92531647,0.00020999,2]
[322122160,1712812240455,-307.95729271,0.00020999,2]
[322122161,1712812240464,-155.45132678,0.00020999,2]
[322122162,1712812240473,-363.87948677,0.00020999,2]
[322122163,1712812240483,-290.97466039,0.00020999,2]
[322122164,1712812240492,-5716.89830622,0.00020999,2]
[322122165,1712812240501,-2790.52409532,0.00020999,2]
[322122166,1712812240510,-405.22592729,0.00021,2]
[322122167,1712812240520,-8679512.89219032,0.00021,2]
[322122168,1712812240529,-158724.3722858,0.00021,2]
[322122169,1712812240546,-478331.40351245,0.00021,2]
[322122170,1712812240556,-266881.21458777,0.00021,2]
[322122171,1712812240565,-715.05532847,0.00021,2]
[322122172,1712812240574,-684.1,0.00021,2]
[322122173,1712812240583,-1252.21,0.00021,2]
[322122174,1712812240592,-394.0,0.00021,2]
[322122175,1712812240601,-1501211.99535605,0.00021,2]
[322122176,1712812240615,-92881.31198635,0.00021,2]
[322122177,1712812241233,-405.17505174,0.00019138,2]
[322122178,1712812241253,-204.30521374,0.0002,2]
[322122179,1712812241273,-347.00099911,0.0002,2]
[322122183,1712812242958,-307.10986274,0.0002,2]
[322122184,1712812242968,-1362.6386706,0.00021,2]
[322122185,1712812243000,-14305.0,0.00021,2]
[322122199,1712812245748,-405.62342928,0.00020996,2]
[322122200,1712812245762,-445.12417112,0.00020996,2]
[322122201,1712812245771,-2705.26915982,0.00020996,2]
[322122202,1712812245806,-135.25759938,0.00020996,2]
[322122203,1712812245815,-594.58687608,0.00021,2]
[322122204,1712812245829,-547.84176427,0.00021,2]
[322122205,1712812245842,-7110.67508,0.00021,2]
[322122206,1712812245917,-480.16982061,0.00021,2]
[322122207,1712812245930,-624.56983749,0.00021,2]
[322122223,1712812266474,150.0,0.00018485,2]
[322122224,1712812266501,974.2,0.00018485,2]
[322122225,1712812272514,-150.0,0.0001906,2]
[322122226,1712812273410,-150.0,0.0001906,2]
[322122227,1712812273956,-150.0,0.0001906,2]
[322122228,1712812274347,-150.0,0.0001906,2]
[322122229,1712812279644,-31.85988594,0.0001906,2]
[322122230,1712812279668,-118.14011406,0.00019061,2]
[322122231,1712812280160,-150.0,0.00019061,2]
[322122232,1712812309718,159.11,0.00016226,2]
[322122233,1712812373818,-150.0,0.0001906,2]
[322122234,1712812374367,-150.0,0.0001906,2]
[322122235,1712812375304,-150.0,0.0001906,2]
[322122236,1712812376153,-150.0,0.0001906,2]
[322122237,1712812377684,-150.0,0.00019059,2]
[322122238,1712812393104,150.0,0.00016226,2]
[322122239,1712812393124,150.0,0.00016226,2]